bitfinex-derivatives/quotes_ETHF0:USTF0_20240925
["timestamp","ask_amount","ask_price","bid_price","bid_amount"]
[1727293392782,3.97932,2579.3,2578.8,0.3694]
[1727293393087,3.40773,2579.2,2579.0,0.38775]
[1727293393486,0.38775,2579.1,2578.8,0.3694]
[1727293393796,6.2278,2579.0,2578.8,0.3694]
[1727293394095,6.2278,2579.0,2578.9,0.38778]
[1727293394489,6.2278,2579.0,2578.9,4.26538]
[1727293396994,6.2278,2579.0,2578.9,0.38778]
[1727293398995,6.61556,2579.0,2578.9,0.38778]
[1727293399196,6.61556,2579.0,2578.8,0.75718]
[1727293399394,6.61556,2579.0,2578.8,0.3694]
[1727293399596,6.61556,2579.0,2578.9,0.38778]
[1727293400293,6.61556,2579.0,2578.8,0.3694]
[1727293400495,1.4,2578.9,2578.8,1.7723266]
[1727293401895,1.4,2578.9,2578.8,0.75718]
[1727293403395,1.78778,2578.9,2578.8,0.75718]
[1727293403796,1.78778,2578.9,2578.8,0.3694]
[1727293405089,1.78778,2578.9,2578.8,0.75719]
[1727293406093,1.78778,2578.9,2578.8,0.3694]
[1727293407797,1.78778,2578.9,2578.8,0.75719]
[1727293409804,1.4,2578.9,2578.8,0.75719]
[1727293410307,1.4,2578.9,2578.8,1.7723366]
[1727293410905,1.78778,2578.9,2578.8,1.7723366]
[1727293411102,1.4,2578.9,2578.8,1.7723366]
[1727293412724,1.78778,2578.9,2578.8,1.7723366]
[1727293412898,1.4,2578.9,2578.8,1.7723366]
[1727293413100,1.78778,2578.9,2578.8,1.7723366]
[1727293413298,0.38778,2578.9,2578.8,1.7723366]
[1727293413613,1.78778,2578.9,2578.8,1.7723366]
[1727293414015,3.2078,2579.0,2578.9,0.38778]
[1727293414206,3.2078,2579.0,2578.9,1.7984266]
[1727293414420,3.2078,2579.0,2578.9,2.7678766]
[1727293414825,3.5916,2579.3,2579.2,0.38773]
[1727293415518,4.9916,2579.3,2579.2,0.76813]
[1727293416114,5.37932,2579.3,2579.2,1.14503]
[1727293416421,4.9916,2579.3,2579.2,1.14503]
[1727293417022,5.37932,2579.3,2579.2,0.7573]
[1727293417415,4.9916,2579.3,2579.2,1.14503]
[1727293417618,5.37932,2579.3,2579.2,0.7573]
[1727293417826,5.37932,2579.3,2579.2,1.14503]
[1727293419226,4.9916,2579.3,2579.2,1.14503]
[1727293419730,5.37932,2579.3,2579.2,1.14503]
[1727293420529,5.37932,2579.3,2579.2,0.76813]
[1727293421319,5.37932,2579.3,2579.2,0.3804]
[1727293427028,0.38775,2579.1,2579.0,0.4079]
[1727293427226,1.78775,2579.1,2579.0,0.7779]
[1727293429637,1.78775,2579.1,2579.0,1.16566]
[1727293432126,1.78775,2579.1,2579.0,0.7779]
[1727293432325,2.75712,2579.1,2579.0,0.37]
[1727293432831,1.78775,2579.1,2579.0,0.37]
[1727293433331,1.78775,2579.1,2579.0,0.75776]
[1727293433526,1.78775,2579.1,2579.0,0.37]
[1727293433829,1.78775,2579.1,2579.0,0.75776]
[1727293436336,1.78775,2579.1,2579.0,0.37]
[1727293436930,1.78775,2579.1,2579.0,0.75776]
[1727293440642,4.56091,2579.3,2579.0,0.75776]
[1727293440643,3.2078,2579.3,2579.2,0.38773]
[1727293440833,3.2078,2579.6,2579.5,0.38769]
[1727293441345,4.99548,2579.6,2579.3,1.7731566]
[1727293441547,4.99548,2579.6,2579.3,0.75801]
[1727293441836,4.99548,2579.6,2579.3,0.3703]
[1727293441837,1.4,2579.4,2579.3,0.3703]
[1727293442044,1.4,2579.4,2579.1,0.4015]
[1727293442228,4.9992,2579.3,2579.0,1.3993]
[1727293442432,1.78775,2579.1,2579.0,1.3993]
[1727293444347,1.78775,2579.1,2578.8,0.4015]
[1727293444348,4.26535,2579.1,2578.8,0.4015]
[1727293444533,4.9992,2579.3,2578.9,0.7661]
[1727293444735,3.5992,2579.3,2578.9,2.1661]
[1727293444938,3.2078,2579.3,2579.2,0.38773]
[1727293445141,0.77379,2579.5,2579.2,0.38773]
[1727293445341,0.77379,2579.5,2579.3,0.7756]
[1727293445647,0.77379,2579.5,2579.4,0.3929]
[1727293446751,2.17379,2579.5,2579.4,0.3929]
[1727293446942,0.3877,2579.4,2579.3,0.3824]
[1727293454438,0.38773,2579.2,2579.1,0.3929]
[1727293454643,0.38773,2579.2,2579.0,1.0151466]
[1727293454644,0.38776,2579.0,2578.9,1.7596466]
[1727293454845,1.78776,2579.0,2578.9,2.1345466]
[1727293455059,1.78776,2579.0,2578.9,1.1194]
[1727293455249,1.78776,2579.0,2578.9,0.7483]
[1727293455451,0.38782,2578.6,2578.5,1.7881866]
[1727293455655,0.38782,2578.6,2578.5,2.5413866]
[1727293455855,0.38782,2578.6,2578.5,1.52624]
[1727293456156,1.78782,2578.7,2578.5,1.52624]
[1727293456742,1.78782,2578.7,2578.5,2.5413866]
[1727293456954,1.78782,2578.7,2578.6,0.38782]
[1727293457153,1.78782,2578.7,2578.5,2.5413766]
[1727293457353,1.78782,2578.7,2578.5,1.52623]
[1727293457548,1.78782,2578.7,2578.5,2.5413766]
[1727293457748,1.78782,2578.7,2578.6,0.38782]
[1727293458145,1.78782,2578.7,2578.5,2.5413766]
[1727293458452,1.78782,2578.7,2578.5,1.52623]
[1727293458649,1.4,2578.6,2578.3,1.0151466]
[1727293458849,4.6078,2578.7,2578.5,0.4007]
[1727293459055,4.99561,2578.7,2578.5,0.78852]
[1727293459758,3.2078,2578.7,2578.6,0.38782]
[1727293459951,4.76618427,2579.1,2578.7,0.38779]
[1727293460261,0.38779,2578.9,2578.8,0.3803]
[1727293460459,1.78779,2578.9,2578.8,0.3803]
[1727293462455,1.4,2578.9,2578.8,0.76809]
[1727293462759,1.78778,2578.9,2578.8,0.3803]
[1727293463653,1.78778,2578.9,2578.8,0.7634]
[1727293468264,1.4,2578.9,2578.8,0.7634]
[1727293468459,1.78778,2578.9,2578.8,0.7634]
[1727293470167,1.4,2578.9,2578.8,0.7634]
[1727293470462,1.78778,2578.9,2578.8,0.7634]
[1727293476366,1.78778,2578.9,2578.8,1.15119]
[1727293476563,1.4,2578.9,2578.8,1.15119]
[1727293476755,1.78778,2578.9,2578.8,0.7634]
[1727293480869,1.4,2578.9,2578.8,1.15119]
[1727293481263,1.78778,2578.9,2578.8,0.7634]
[1727293481565,0.38778,2578.9,2578.8,0.7634]
[1727293481770,3.59557,2579.0,2578.8,1.15119]
[1727293482165,3.59557,2579.0,2578.9,0.391]
[1727293483267,3.59552,2579.3,2579.1,0.38774]
[1727293483461,3.59552,2579.3,2578.9,1.791]
[1727293483462,3.59552,2579.3,2579.2,0.3736]
[1727293484974,4.99552,2579.3,2579.2,0.3736]
[1727293485363,5.96482,2579.3,2579.2,0.3736]
[1727293486361,5.96482,2579.3,2578.9,0.77878]
[1727293486362,0.38775,2579.2,2579.0,0.38776]
[1727293486564,1.4,2579.1,2579.0,0.78336]
[1727293486960,1.78775,2579.1,2579.0,0.3956]
[1727293488073,1.4,2579.1,2579.0,0.78336]
[1727293488575,1.78775,2579.1,2579.0,0.3956]
[1727293489369,1.78775,2579.1,2579.0,0.78336]
[1727293489968,1.4,2579.1,2579.0,0.78336]
[1727293493067,3.2078,2579.3,2579.0,1.7956]
[1727293493278,3.2078,2579.3,2579.2,0.38773]
[1727293493670,3.2078,2579.3,2579.2,0.76893]
[1727293494074,3.2078,2579.3,2579.2,0.3812]
[1727293494278,3.2078,2579.3,2579.2,0.7883]
[1727293494677,3.2078,2579.3,2579.2,1.17603]
[1727293494880,3.2078,2579.3,2579.2,0.7883]
[1727293495881,0.38771,2579.4,2579.2,0.7883]
[1727293496184,3.59552,2579.3,2579.2,0.7883]
[1727293497175,0.38772,2579.3,2579.2,0.7883]
[1727293498581,0.38772,2579.3,2579.2,0.3812]
[1727293500385,0.38775,2579.1,2579.0,0.7734]
[1727293500593,3.59555,2579.1,2579.0,1.1812]
[1727293501686,3.2078,2579.1,2579.0,1.1812]
[1727293502081,3.59555,2579.1,2579.0,1.1812]
[1727293502578,3.59555,2579.1,2578.8,1.4]
[1727293502579,0.38779,2578.8,2578.6,2.0411466]
[1727293502889,0.38779,2578.8,2578.7,0.7486]
[1727293503474,1.35728,2578.8,2578.7,0.7486]
[1727293503674,8.4854,2578.8,2578.2,1.0151466]
[1727293503878,1.35759,2578.2,2578.1,5.03231611]
[1727293504084,1.35765,2578.1,2578.0,3.6037]
[1727293504292,0.3879,2578.1,2578.0,3.6037]
[1727293505787,3.5957,2578.1,2578.0,0.3959]
[1727293507189,3.2078,2578.1,2577.9,0.38792]
[1727293507391,0.808,2578.3,2578.0,1.7758]
[1727293507392,0.4082,2578.3,2578.0,1.7758]
[1727293507582,0.38784,2578.5,2578.2,1.78788]
[1727293507778,0.763,2578.7,2578.3,1.13467]
[1727293508079,0.3714,2578.7,2578.6,1.4]
[1727293508282,3.2078,2578.9,2578.6,1.4]
[1727293508487,3.2078,2578.9,2578.7,1.4]
[1727293508677,3.2078,2578.9,2578.7,1.8047]
[1727293509484,3.2078,2578.9,2578.8,1.4]
[1727293509688,3.2078,2578.9,2578.8,1.7822]
[1727293510290,3.2078,2578.9,2578.8,2.16999]
[1727293510585,3.2078,2578.9,2578.8,8.07109]
[1727293510888,3.2078,2579.2,2579.0,0.38776]
[1727293512287,3.2078,2579.2,2578.8,3.8057]
[1727293512692,3.2078,2578.9,2578.8,3.8057]
[1727293512987,3.2078,2579.3,2578.8,3.8057]
[1727293513492,3.2078,2579.3,2578.9,0.38777]
[1727293513791,3.59553,2579.3,2578.9,0.38777]
[1727293514389,3.2078,2579.0,2578.8,0.3822]
[1727293514793,3.59556,2579.0,2578.8,0.3822]
[1727293517099,3.2078,2579.0,2578.8,0.76998]
[1727293518293,3.2078,2579.0,2578.9,0.38778]
[1727293519597,0.77544,2579.2,2579.0,0.38776]
[1727293524701,0.3877,2579.2,2579.0,0.38776]
[1727293525005,0.3877,2579.2,2579.1,0.38775]
[1727293525507,3.8776,2579.2,2579.1,0.38775]
[1727293526400,6.62552,2579.3,2579.1,0.38775]
[1727293526595,6.62552,2579.3,2579.0,0.38775]
[1727293526896,6.2378,2579.3,2578.9,0.3814]
[1727293527099,3.2078,2579.0,2578.9,0.38777]
[1727293527306,0.38778,2578.9,2578.8,0.3822]
[1727293527494,3.59557,2579.0,2578.8,0.76999]
[1727293527699,3.59557,2579.0,2578.8,0.3822]
[1727293527700,0.77748,2578.9,2578.8,0.3822]
[1727293528005,0.3897,2578.9,2578.8,0.76999]
[1727293528301,3.2078,2579.0,2578.9,0.38778]
[1727293528703,3.59557,2579.0,2578.8,0.76999]
[1727293529108,3.2078,2579.0,2578.9,0.38778]
[1727293529304,3.59556,2579.0,2578.9,0.38778]
[1727293531207,0.38778,2578.9,2578.8,0.76998]
[1727293531505,0.38778,2578.9,2578.8,0.76999]
[1727293531708,3.59557,2579.0,2578.9,0.38778]
[1727293533403,3.2078,2579.0,2578.9,0.38778]
[1727293534510,3.59556,2579.0,2578.9,0.38778]
[1727293535403,0.38778,2578.9,2578.8,2.16998]
[1727293535601,0.38778,2578.9,2578.8,0.76999]
[1727293536514,3.2078,2579.0,2578.8,0.76999]
[1727293536903,3.2078,2579.0,2578.8,0.3822]
[1727293537211,0.38778,2578.9,2578.8,0.3822]
[1727293537608,3.59557,2579.0,2578.9,0.38778]
[1727293537815,3.2078,2579.0,2578.9,0.38778]
[1727293541215,0.38778,2578.9,2578.8,2.16999]
[1727293541409,3.2078,2579.0,2578.9,0.38778]
[1727293542007,0.38778,2578.9,2578.8,2.16998]
[1727293542210,0.38779,2578.8,2578.7,0.3752]
[1727293542411,0.3997,2578.8,2578.7,0.3752]
[1727293542705,0.3997,2578.8,2578.7,0.76301]
[1727293543912,0.38779,2578.9,2578.8,0.38779]
[1727293544113,0.38779,2578.9,2578.8,1.78779]
[1727293544621,3.2078,2579.0,2578.9,0.38778]
[1727293544907,3.2078,2579.0,2578.9,0.76698]
[1727293545102,3.2078,2579.0,2578.9,1.16788]
[1727293545705,3.59556,2579.0,2578.9,1.16788]
[1727293545904,3.2078,2579.0,2578.9,1.16788]
[1727293546414,3.59556,2579.0,2578.9,1.16788]
[1727293546823,3.2078,2579.0,2578.9,1.16788]
[1727293552009,3.2078,2579.0,2578.9,2.56788]
[1727293552920,3.59556,2579.0,2578.9,2.1801]
[1727293553419,3.59556,2579.0,2578.9,1.16788]
[1727293554023,3.59556,2579.0,2578.9,2.1830266]
[1727293554321,3.2078,2579.0,2578.9,2.1830266]
[1727293555526,3.2078,2579.0,2578.9,3.56713625]
[1727293555909,3.59556,2579.0,2578.9,2.1830266]
[1727293556313,3.59556,2579.0,2578.9,3.56728142]
[1727293556510,3.2078,2579.0,2578.9,3.56728142]
[1727293560317,3.2078,2579.0,2578.9,3.56733411]
[1727293560636,3.2078,2579.0,2578.9,4.07692541]
[1727293562329,3.59556,2579.0,2578.9,2.40235194]
[1727293562634,3.59556,2579.0,2578.9,2.79013234]
[1727293563025,3.59556,2579.0,2578.9,1.01803677]
[1727293563225,3.59556,2579.0,2578.9,2.40235314]
[1727293563525,3.2078,2579.0,2578.9,2.79013973]
[1727293563926,3.2078,2579.0,2578.9,2.79013795]
[1727293564936,3.2078,2579.0,2578.9,1.77208586]
[1727293565228,3.2078,2579.0,2578.9,2.79016361]
[1727293565825,3.59556,2579.0,2578.9,1.01803941]
[1727293567033,3.2078,2579.0,2578.9,4.19059391]
[1727293567235,3.2078,2579.0,2578.9,4.57709391]
[1727293567430,3.2078,2579.0,2578.9,5.0837924]
[1727293567832,3.2078,2579.0,2578.9,4.57712567]
[1727293568147,3.2078,2579.0,2578.9,2.17428]
[1727293568444,3.59556,2579.0,2578.9,2.17428]
[1727293568835,3.59556,2579.0,2578.9,0.38778]
[1727293569233,3.2078,2579.0,2578.9,0.38778]
[1727293572039,3.59556,2579.0,2578.9,0.38778]
[1727293573845,2.32677,2578.8,2578.7,1.01807117]
[1727293574140,0.38781,2578.7,2578.4,5.59191117]
[1727293574340,0.38784,2578.5,2578.4,5.59191117]
[1727293575739,0.38784,2578.5,2578.4,1.40591117]
[1727293575941,0.38784,2578.5,2578.4,3.29696666]
[1727293577143,0.38784,2578.5,2578.4,2.78975861]
[1727293577842,0.38784,2578.5,2578.4,1.77222876]
[1727293578248,0.38784,2578.5,2578.4,2.78962824]
[1727293578645,0.3972,2578.7,2578.4,2.78438876]
[1727293578950,0.38779,2578.9,2578.6,2.41736889]
[1727293579142,0.38779,2578.9,2578.8,1.78778]
[1727293580140,3.59557,2579.0,2578.9,0.38778]
[1727293580338,0.38778,2578.9,2578.8,1.78778]
[1727293580542,0.38778,2578.9,2578.8,0.38778]
[1727293580744,0.38778,2578.9,2578.8,0.38779]
[1727293580950,0.38778,2578.9,2578.7,1.5414]
[1727293581253,0.38778,2578.9,2578.8,0.38779]
[1727293583254,4.6078,2579.0,2578.8,0.38779]
[1727293583455,0.38778,2578.9,2578.8,0.38779]
[1727293588749,0.38778,2578.9,2578.7,1.54139]
[1727293588945,0.38778,2578.9,2578.8,0.38779]
[1727293589646,0.38779,2578.8,2578.7,1.5414]
[1727293589853,0.38779,2578.8,2578.7,1.54141]
[1727293590050,14.4854,2578.8,2578.5,1.01736889]
[1727293590250,1.35749,2578.4,2578.3,1.01736889]
[1727293590454,0.38787,2578.3,2578.2,1.01736889]
[1727293590663,0.38788,2578.2,2578.1,5.36706889]
[1727293590957,0.38788,2578.2,2578.1,4.3497]
[1727293591269,0.38788,2578.2,2578.1,5.7497]
[1727293591561,0.38788,2578.2,2578.1,4.3497]
[1727293593058,0.38788,2578.2,2578.1,1.1419]
[1727293593671,0.38788,2578.2,2578.1,0.3914]
[1727293593961,0.38788,2578.2,2577.6,1.01736889]
[1727293593962,0.38795,2577.8,2577.6,1.01736889]
[1727293594163,1.78795,2577.8,2577.5,0.7976]
[1727293594368,0.38796,2577.7,2577.5,0.7976]
[1727293594661,0.38796,2577.7,2577.5,1.18558]
[1727293594968,0.38795,2577.8,2577.5,2.1976]
[1727293595160,0.38795,2577.8,2577.5,2.58558]
[1727293595961,0.38794,2577.9,2577.7,1.78795]
[1727293596269,0.38793,2577.9,2577.7,0.38795]
[1727293596560,0.38792,2578.0,2577.8,0.38793]
[1727293596764,3.978,2578.1,2577.9,0.78363]
[1727293596967,0.76107,2578.3,2578.1,0.38789]
[1727293597166,3.98116,2578.4,2578.1,0.38789]
[1727293598866,0.38788,2578.3,2578.0,0.7754]
[1727293599069,3.98116,2578.4,2578.1,0.38789]
[1727293599961,0.38787,2578.3,2578.0,1.1633]
[1727293600268,0.38787,2578.3,2578.1,0.38789]
[1727293603363,0.38788,2578.2,2578.0,1.1633]
[1727293603770,0.38788,2578.3,2578.1,0.3879]
[1727293604873,3.59566,2578.4,2578.2,0.38788]
[1727293605074,3.59566,2578.4,2578.3,0.3769]
[1727293605265,3.59565,2578.4,2578.3,0.3769]
[1727293605567,3.59565,2578.4,2578.3,0.76477]
[1727293605960,3.59565,2578.4,2578.3,0.3769]
[1727293611382,3.2078,2578.4,2578.3,0.76477]
[1727293611566,0.38783,2578.6,2578.4,0.38784]
[1727293611772,0.3797,2578.7,2578.5,1.15914]
[1727293611773,0.76751,2578.7,2578.5,1.15914]
[1727293612171,0.38781,2578.7,2578.5,1.15914]
[1727293612583,0.38782,2578.6,2578.5,0.7713]
[1727293615376,0.38781,2578.7,2578.5,1.15914]
[1727293615677,4.17731,2578.8,2578.5,0.7713]
[1727293615875,0.38782,2578.6,2578.5,0.7713]
[1727293618379,1.78782,2578.7,2578.5,1.15914]
[1727293618574,0.79448,2578.9,2578.7,0.38779]
[1727293618779,0.38778,2578.9,2578.8,0.4035]
[1727293619470,0.38778,2578.9,2578.8,0.79129]
[1727293619681,2.16777,2579.0,2578.8,0.79129]
[1727293619882,2.16777,2579.0,2578.9,0.3897]
[1727293620272,0.76777,2579.0,2578.9,0.3897]
[1727293626073,3.97557,2579.0,2578.9,0.3897]
[1727293628488,0.76777,2579.0,2578.9,0.3897]
[1727293628676,3.97557,2579.0,2578.9,0.3897]
[1727293628877,3.2078,2579.0,2578.9,0.3897]
[1727293629087,3.2078,2579.0,2578.9,1.14828]
[1727293630274,3.59556,2579.0,2578.9,0.7605]
[1727293631587,3.59556,2579.0,2578.9,1.14828]
[1727293632189,3.2078,2579.0,2578.9,1.14828]
[1727293632389,3.59556,2579.0,2578.9,1.14828]
[1727293632602,3.2078,2579.0,2578.9,1.14828]
[1727293633392,3.59556,2579.0,2578.9,0.7605]
[1727293633685,3.2078,2579.0,2578.9,1.14828]
[1727293634088,3.59556,2579.0,2578.9,1.14828]
[1727293640900,3.59556,2579.0,2578.9,2.54828]
[1727293641793,3.2078,2579.0,2578.9,2.54828]
[1727293641993,3.59556,2579.0,2578.9,2.54828]
[1727293642605,3.2078,2579.0,2578.9,2.54828]
[1727293642906,3.59556,2579.0,2578.9,2.54828]
[1727293643904,3.2078,2579.0,2578.9,2.54828]
[1727293644111,3.59556,2579.0,2578.9,2.54828]
[1727293644906,3.2078,2579.0,2578.9,2.54828]
[1727293648100,3.59556,2579.0,2578.9,2.54828]
[1727293648302,3.59556,2579.0,2578.9,0.7605]
[1727293648510,0.38778,2578.9,2578.8,0.4035]
[1727293648697,1.17308,2578.9,2578.8,0.4035]
[1727293649409,2.14253,2578.9,2578.8,0.4035]
[1727293650716,1.17308,2578.9,2578.8,0.4035]
[1727293651004,1.17308,2578.9,2578.8,0.79129]
[1727293651214,1.17308,2578.9,2578.8,0.4035]
[1727293651808,1.17308,2578.9,2578.8,0.79129]
[1727293652505,3.59557,2579.0,2578.9,0.38778]
[1727293652701,3.2078,2579.0,2578.9,0.38778]
[1727293653009,0.38776,2579.1,2579.0,0.38776]
[1727293653200,0.38778,2579.0,2578.9,1.78777]
[1727293653400,0.38776,2579.1,2579.0,0.38775]
[1727293653606,0.38776,2579.1,2579.0,0.76465]
[1727293654109,0.38775,2579.1,2579.0,0.76465]
[1727293654305,0.38774,2579.2,2579.0,0.76465]
[1727293655109,3.9668,2579.3,2579.0,0.3769]
[1727293655413,0.38774,2579.2,2579.0,0.76465]
[1727293658614,3.59554,2579.2,2579.0,0.76465]
[1727293660009,0.38774,2579.2,2579.0,0.76465]
[1727293660211,3.59554,2579.2,2579.0,0.76465]
[1727293661718,0.38775,2579.1,2579.0,0.3769]
[1727293663410,0.38775,2579.1,2579.0,0.76466]
[1727293663919,0.38775,2579.1,2579.0,0.3769]
[1727293664110,1.35712,2579.1,2579.0,0.3769]
[1727293664420,0.38778,2578.9,2578.8,0.4035]
[1727293664626,0.38781,2578.7,2578.6,1.78116889]
[1727293664806,0.38782,2578.6,2578.4,0.3839]
[1727293665011,0.38782,2578.6,2578.4,0.7709]
[1727293665012,3.59562,2578.6,2578.4,0.7709]
[1727293665914,0.38784,2578.5,2578.4,0.7709]
[1727293668424,3.2078,2578.6,2578.4,0.7709]
[1727293668923,0.38784,2578.5,2578.4,0.7709]
[1727293672830,1.36023,2578.7,2578.4,0.7709]
[1727293673226,0.38784,2578.6,2578.5,1.4]
[1727293675031,1.35744,2578.5,2578.4,0.7709]
[1727293676228,0.38784,2578.5,2578.4,0.7709]
[1727293677134,0.38786,2578.4,2578.2,0.4018]
[1727293677425,0.38786,2578.4,2578.2,1.1733]
[1727293678920,3.2078,2578.3,2578.2,1.1733]
[1727293679227,3.59567,2578.3,2578.2,0.7715]
[1727293684828,3.2078,2578.3,2578.2,2.1715]
[1727293685034,3.2078,2578.6,2578.2,2.55938]
[1727293685229,0.38784,2578.5,2578.4,1.4]
[1727293685425,4.6078,2578.6,2578.2,0.7715]
[1727293685628,3.59567,2578.3,2578.2,0.7715]
[1727293685830,0.3879,2578.1,2578.0,0.3715]
[1727293686129,0.3879,2578.1,2578.0,0.7756]
[1727293687028,0.3879,2578.1,2578.0,0.4041]
[1727293687229,0.7954,2578.1,2578.0,0.4041]
[1727293687827,0.7954,2578.1,2578.0,1.8041]
[1727293688132,0.3879,2578.1,2578.0,1.8041]
[1727293689743,4.2671,2578.1,2578.0,1.4]
[1727293689931,0.38791,2578.0,2577.9,0.787]
[1727293690628,0.3879,2578.1,2577.9,0.787]
[1727293690821,0.3879,2578.1,2577.9,2.187]
[1727293691023,0.9697,2578.3,2577.9,2.187]
[1727293691329,0.3879,2578.1,2577.9,2.187]
[1727293696441,0.3879,2578.1,2577.9,2.57493]
[1727293696832,0.3879,2578.1,2577.9,2.187]
[1727293697138,0.3879,2578.1,2577.9,2.57493]
[1727293697339,0.3879,2578.1,2577.9,2.187]
[1727293697634,0.3879,2578.1,2577.9,2.57492]
[1727293700442,0.38791,2578.0,2577.9,2.187]
[1727293700641,0.3879,2578.1,2577.9,2.57492]
[1727293701429,0.38791,2578.0,2577.9,2.187]
[1727293701835,0.38791,2578.1,2577.9,2.57493]
[1727293702354,0.38791,2578.0,2577.9,2.187]
[1727293704346,0.38791,2578.0,2577.9,0.787]
[1727293704644,0.38791,2578.0,2577.9,1.17493]
[1727293704840,0.38791,2578.1,2578.0,0.38791]
[1727293705046,0.38791,2578.0,2577.9,2.187]
[1727293705434,0.38791,2578.1,2577.9,2.57492]
[1727293706037,0.38789,2578.2,2578.0,0.38791]
[1727293706249,4.17738,2578.6,2578.1,1.4]
[1727293706547,3.59562,2578.6,2578.5,1.4]
[1727293706747,3.59562,2578.6,2578.4,1.78784]
[1727293706932,3.59562,2578.6,2578.5,0.7567]
[1727293707137,3.2078,2578.6,2578.5,0.7567]
[1727293707334,3.2078,2578.6,2578.5,1.14454]
[1727293707938,3.2078,2578.6,2578.5,2.54454]
[1727293708754,8.4862,2578.6,2578.2,1.4188675]
[1727293709051,1.4,2578.4,2578.2,0.7971]
[1727293709743,0.798,2578.5,2578.3,1.4]
[1727293709947,3.2078,2578.6,2578.4,0.38785]
[1727293710137,3.59562,2578.6,2578.5,0.3761]
[1727293712843,0.38785,2578.4,2578.1,0.38789]
[1727293713044,0.7903,2578.3,2578.1,0.38789]
[1727293714251,3.9981,2578.3,2578.1,0.38789]
[1727293714443,0.38789,2578.2,2578.0,1.1609]
[1727293714649,0.3879,2578.1,2578.0,0.773]
[1727293714843,1.78789,2578.2,2578.0,0.773]
[1727293715042,1.4,2578.2,2578.0,0.773]
[1727293715536,1.78789,2578.2,2578.0,0.773]
[1727293715736,4.38598,2578.3,2578.1,0.3879]
[1727293715937,4.38598,2578.3,2578.0,1.1609]
[1727293716148,3.2078,2578.3,2578.2,0.38788]
[1727293716349,1.78784,2578.5,2578.2,0.38788]
[1727293716555,1.78784,2578.5,2578.3,0.38787]
[1727293716846,1.4,2578.5,2578.4,0.3852]
[1727293717046,1.78784,2578.5,2578.4,0.3852]
[1727293717244,5.66624,2578.5,2578.4,0.3852]
[1727293717445,1.78784,2578.5,2578.4,0.3852]
[1727293725755,4.99564,2578.5,2578.4,0.3852]
[1727293726361,1.78784,2578.5,2578.4,0.3852]
[1727293727163,4.99564,2578.5,2578.4,0.3852]
[1727293727759,5.96524,2578.5,2578.4,0.3852]
[1727293728461,2.75744,2578.5,2578.4,0.3852]
[1727293728950,1.78784,2578.5,2578.4,0.3852]
[1727293729147,1.78784,2578.5,2578.4,0.7678]
[1727293730255,4.99564,2578.5,2578.4,0.7678]
[1727293730449,1.78784,2578.5,2578.4,0.7678]
[1727293731764,4.99564,2578.5,2578.4,0.7678]
[1727293732859,5.96524,2578.5,2578.4,0.3852]
[1727293733363,4.96974,2578.5,2578.4,0.3852]
[1727293733555,6.36974,2578.5,2578.4,0.3852]
[1727293734566,4.99564,2578.5,2578.4,0.3852]
[1727293736160,5.96524,2578.5,2578.4,0.3852]
[1727293736567,6.34044,2578.5,2578.4,0.3852]
[1727293740476,4.99564,2578.5,2578.4,0.3852]
[1727293741275,4.99564,2578.5,2578.4,0.7869]
[1727293741663,3.59564,2578.5,2578.4,0.7869]
[1727293750904,3.2078,2578.5,2577.9,1.0152675]
[1727293751086,4.6078,2578.5,2578.2,0.38788]
[1727293751396,0.38786,2578.4,2578.3,0.38787]
[1727293752393,4.6078,2578.5,2578.2,0.38787]
[1727293752586,4.99565,2578.5,2578.3,0.38787]
[1727293752792,4.99565,2578.5,2578.4,0.3771]
[1727293753091,5.96525,2578.5,2578.4,0.7543]
[1727293753687,4.99565,2578.5,2578.4,0.7543]
[1727293754799,0.3879,2578.1,2578.0,1.0152675]
[1727293755100,1.7879,2578.1,2578.0,0.7466]
[1727293755900,0.3879,2578.1,2578.0,3.65580322]
[1727293757391,0.3879,2578.1,2578.0,2.13290197]
[1727293757695,1.35765,2578.1,2578.0,2.90920322]
[1727293757905,7.41205,2578.1,2578.0,2.40465732]
[1727293758095,1.3577,2578.0,2577.9,1.01835535]
[1727293758594,1.3577,2578.0,2577.9,1.40628535]
[1727293758795,0.38791,2578.0,2577.9,1.40628535]
[1727293758999,0.38791,2578.0,2577.9,4.19257888]
[1727293759201,0.38791,2578.0,2577.9,2.80606751]
[1727293759389,0.38791,2578.0,2577.9,2.41813751]
[1727293759591,2.7577,2578.0,2577.9,1.01813751]
[1727293760194,0.38793,2577.9,2577.8,2.55747751]
[1727293760396,0.38793,2577.9,2577.8,4.44822974]
[1727293760586,0.38793,2577.9,2577.8,2.92532849]
[1727293760886,0.38792,2578.0,2577.9,0.38792]
[1727293761085,1.35776,2577.9,2577.8,1.78713459]
[1727293761287,1.73176,2577.9,2577.8,0.3711]
[1727293761888,1.35786,2577.7,2577.6,1.40673459]
[1727293762598,0.38796,2577.7,2577.6,1.40673459]
[1727293762799,1.35786,2577.7,2577.6,0.3887]
[1727293763596,1.75016,2577.7,2577.6,0.3887]
[1727293764098,0.78026,2577.7,2577.6,0.77667]
[1727293765089,0.78026,2577.7,2577.6,0.3887]
[1727293765290,0.78026,2577.7,2577.6,0.77667]
[1727293767298,0.78026,2577.7,2577.6,0.3887]
[1727293767696,0.78026,2577.7,2577.6,0.77667]
[1727293769004,3.5818,2577.9,2577.7,0.38796]